[Event "34rd NATO Championship 2024"]
[Site "Rhodes"]
[Date "2024.10.24"]
[Round "5.45"]
[White "Stikane, Evelina"]
[Black "Smit, Jan"]
[Result "1-0"]
[ECO "B08"]
[WhiteElo "1583"]
[BlackElo "1866"]
[Annotator "NA COMBH"]
[PlyCount "93"]
[EventDate "2024.09.18"]
[EventType "swiss"]
[EventCountry "GRE"]
[SourceTitle "playchess.com"]
[Source "ChessBase"]
[SourceQuality "1"]
[TimeControl "5400+30"]

1. d4 {[%emt 0:00:01]} g6 {[%emt 0:00:00]} 2. Nc3 Bg7 {[%emt 1:31:30]} 3. e4 {[%emt 0:00:15]} d6 {[%emt 0:00:00]} 4. Nf3 {[%emt 0:00:09]} Nf6 {[%emt 0:00:00]} 5. Be2 {[%emt 0:00:05]} c6 {[%emt 0:00:00]} 6. a4 {[%emt 0:00:06]} a5 {[%emt 0:00:00]} 7. O-O {[%emt 0:00:50]} Qc7 {[%emt 0:00:00]} 8. h3 {[%emt 1:33:04]} Nbd7 {[%emt 0:00:00]} 9. Re1 {[%emt 0:00:00]} e5 {[%emt 0:00:00]} 10. dxe5 {[%emt 0:01:00]} dxe5 {[%emt 0:00:00]} 11. Bc4 {[%emt 0:00:00]} h6 {[%emt 0:00:00]} 12. Be3 {[%emt 0:00:00]} O-O {[%emt 0:00:00]} 13. Qd2 {[%emt 0:00:00]} Kh7 {[%emt 0:00:00]} 14. Rad1 {[%emt 0:00:00]} Ne8 {[%emt 0:00:00]} 15. Nh4 {[%emt 0:00:00]} Qd8 {[%emt 0:00:00]} 16. g3 {[%emt 0:00:00]} Qe7 {[%emt 0:00:00]} 17. Kh2 {[%emt 0:00:00]} Qb4 {[%emt 0:00:00]} 18. Bb3 {[%emt 0:00:00]} Nc5 {[%emt 0:00:00]} 19. Ba2 {[%emt 0:00:00]} Be6 {[%emt 0:00:00]} 20. Bxe6 {[%emt 0:00:00]} Nxe6 {[%emt 0:00:00]} 21. b3 {[%emt 0:00:00]} Nf6 {[%emt 0:00:00]} 22. Re2 {[%emt 0:00:00]} Rad8 {[%emt 0:00:00]} 23. Qe1 {[%emt 0:00:00]} Rxd1 {[%emt 0:00:00]} 24. Nxd1 {[%emt 0:00:00]} Qxe1 {[%emt 0:00:00]} 25. Rxe1 {[%emt 0:00:00]} Nd4 {[%emt 0:00:00]} 26. Bxd4 {[%emt 0:00:00]} exd4 {[%emt 0:00:00]} 27. e5 {[%emt 0:00:00]} Re8 {[%emt 0:00:00]} 28. f4 {[%emt 0:00:00]} Nd5 {[%emt 0:00:00]} 29. Nf3 {[%emt 0:00:00]} c5 {[%emt 0:00:00]} 30. Nd2 {[%emt 0:00:00]} Re6 {[%emt 0:00:00]} 31. Nc4 {[%emt 0:00:00]} b6 {[%emt 0:00:00]} 32. h4 {[%emt 0:00:00]} f6 {[%emt 0:00:00]} 33. Kg2 {[%emt 0:00:00]} f5 {[%emt 0:00:00]} 34. Kf3 {[%emt 0:00:00]} g5 {[%emt 0:00:00]} 35. hxg5 {[%emt 0:00:00]} hxg5 {[%emt 0:00:00]} 36. fxg5 {[%emt 0:00:00]} Kg6 {[%emt 0:00:00]} 37. Nf2 {[%emt 0:00:00]} Nb4 {[%emt 0:04:29]} 38. Nh3 {[%emt 0:00:00]} Kf7 {[%emt 0:02:02]} 39. Nf4 {[%emt 0:00:00]} Re7 {[%emt 0:01:53]} 40. Re2 {[%emt 0:00:00]} Nc6 {[%emt 0:04:22]} 41. e6+ {[%emt 0:00:00]} Ke8 {[%emt 0:01:26]} 42. Nd6+ {[%emt 0:00:00]} Kd8 {[%emt 0:00:26]} 43. Nf7+ {[%emt 0:00:00]} Kc8 {[%emt 0:00:38]} 44. Ng6 {[%emt 0:00:00]} Kb7 {[%emt 0:01:36]} 45. Nxe7 {[%emt 0:01:52]} Nxe7 {[%emt 0:00:02]} 46. Nd6+ {[%emt 0:00:42]} Kc6 {[%emt 0:00:26] Check Result:10.79} 47. Nxf5 {[%emt 0:00:47]} 1-0

[Event "34rd NATO Championship 2024"]
[Site "Rhodes"]
[Date "2024.10.24"]
[Round "5.47"]
[White "Steffers, Hendrik"]
[Black "Hart, David P O"]
[Result "1-0"]
[ECO "D05"]
[WhiteElo "1882"]
[BlackElo "2003"]
[Annotator "RC"]
[PlyCount "57"]
[EventDate "2024.09.18"]
[EventType "swiss"]
[EventCountry "GRE"]
[SourceTitle "playchess.com"]
[Source "ChessBase"]
[SourceQuality "1"]
[TimeControl "5400+30"]

1. d4 {[%emt 0:00:08]} d5 {[%emt 0:00:06]} 2. Nf3 {[%emt 0:00:11]} e6 {[%emt 0:00:47]} 3. e3 {[%emt 0:01:33]} Nf6 {[%emt 0:00:10]} 4. Bd3 {[%emt 0:00:11]} Be7 {[%emt 0:01:10]} 5. O-O {[%emt 0:00:17]} Nbd7 {[%emt 0:01:23]} 6. b3 {[%emt 0:01:01]} c5 {[%emt 0:01:44]} 7. Bb2 {[%emt 0:00:42]} b6 {[%emt 0:01:59]} 8. Nbd2 {[%emt 0:05:10]} Bb7 {[%emt 0:00:20]} 9. Ne5 {[%emt 0:07:46]} Rc8 {[%emt 0:01:15]} 10. c4 {[%emt 1:18:31]} Nxe5 {[%emt 0:04:09]} 11. dxe5 {[%emt 0:00:00]} Nd7 {[%emt 0:00:07]} 12. cxd5 {[%emt 0:00:00]} Bxd5 {[%emt 0:00:40]} 13. f4 {[%emt 0:00:00]} g6 {[%emt 0:17:41]} 14. e4 {[%emt 0:00:00]} Ba8 {[%emt 0:00:11]} 15. f5 {[%emt 0:00:00]} Nf8 {[%emt 0:05:39]} 16. Bb5+ {[%emt 0:00:00]} Nd7 {[%emt 0:00:43]} 17. fxe6 {[%emt 0:00:00]} fxe6 {[%emt 0:00:09]} 18. Qf3 {[%emt 0:00:00]} Rf8 {[%emt 0:00:31]} 19. Qh3 {[%emt 0:00:00]} Bc6 {[%emt 0:00:48]} 20. Ba6 {[%emt 0:00:00]} Ra8 {[%emt 0:04:04]} 21. Qxe6 {[%emt 0:00:00]} Qc7 {[%emt 0:00:42]} 22. Nc4 {[%emt 0:00:00]} Kd8 {[%emt 0:01:46]} 23. Nd6 {[%emt 0:00:00]} Rb8 {[%emt 0:01:33]} 24. Nb5 {[%emt 0:00:00]} Bxb5 {[%emt 0:00:38]} 25. Bxb5 {[%emt 0:00:00]} Rxf1+ {[%emt 0:06:11]} 26. Rxf1 {[%emt 0:00:00]} c4 {[%emt 0:03:30]} 27. Rd1 {[%emt 0:00:00]} Qc5+ {[%emt 0:00:37]} 28. Kh1 {[%emt 0:00:00]} Qxb5 {[%emt 0:00:11]} 29. a4 {[%emt 0:00:00]} 1-0

[Event "34rd NATO Championship 2024"]
[Site "Rhodes"]
[Date "2024.10.24"]
[Round "5.48"]
[White "Bouchard, Pier-Alex"]
[Black "Bublys, Vaidotas"]
[Result "1/2-1/2"]
[ECO "D02"]
[WhiteElo "1818"]
[BlackElo "1872"]
[Annotator "NA COMBH"]
[PlyCount "40"]
[EventDate "2024.09.18"]
[EventType "swiss"]
[EventCountry "GRE"]
[SourceTitle "playchess.com"]
[Source "ChessBase"]
[SourceQuality "1"]
[TimeControl "5400+30"]

1. Nf3 {[%emt 0:00:05]} c5 {[%emt 0:00:39]} 2. g3 {[%emt 0:00:39]} Nc6 {[%emt 0:00:25]} 3. Bg2 {[%emt 0:00:35]} Nf6 {[%emt 0:00:39]} 4. d4 {[%emt 0:01:33]} e6 {[%emt 0:01:01]} 5. O-O {[%emt 0:02:21]} d5 {[%emt 0:00:40]} 6. Nc3 {[%emt 0:06:44]} a6 {[%emt 0:01:15]} 7. Re1 {[%emt 0:01:40]} Rb8 {[%emt 0:01:12]} 8. e4 {[%emt 0:01:13]} dxe4 {[%emt 0:00:43]} 9. Nxe4 {[%emt 0:00:22]} Nxd4 {[%emt 0:00:32]} 10. Bg5 {[%emt 0:04:27]} Be7 {[%emt 0:00:17]} 11. Bxf6 {[%emt 0:03:21]} Bxf6 {[%emt 0:00:16]} 12. Nxc5 {[%emt 0:00:47]} Nxf3+ {[%emt 0:03:46]} 13. Bxf3 {[%emt 0:00:38]} Qxd1 {[%emt 0:00:24]} 14. Rexd1 {[%emt 0:00:21]} O-O {[%emt 0:03:18]} 15. Nd7 {[%emt 0:06:28]} Bxd7 {[%emt 0:00:15]} 16. Rxd7 {[%emt 0:00:09]} b6 {[%emt 0:00:25]} 17. c3 {[%emt 0:00:47]} Rfd8 {[%emt 0:00:31]} 18. Rad1 {[%emt 0:00:46]} Rxd7 {[%emt 0:00:24]} 19. Rxd7 {[%emt 0:00:08]} Kf8 {[%emt 0:00:19]} 20. Kf1 {[%emt 0:00:23] Check Result:0.00} Bg5 {[%emt 0:00:39]} 1/2-1/2